[Event "IIFL Wealth  4th Mumbai Junior U-13"]
[Site "Mumbai"]
[Date "2019.01.01"]
[Round "3"]
[White "Sara Mody"]
[Black "Adreeja Sinha"]
[Result "0-1"]
[ECO "B76"]
[WhiteElo "1060"]
[BlackElo "1366"]
[Annotator "NA RC"]
[PlyCount "70"]
[EventDate "2018.12.30"]
[EventType "swiss"]
[EventCountry "IND"]
[SourceTitle "playchess.com"]
[Source "ChessBase"]
[SourceQuality "1"]
[TimeControl "40/5400+30:1800+30"]

1. e4 {[%emt 0:00:00]} c5 {[%emt 0:00:00]} 2. Nf3 {[%emt 0:00:00]} d6 {[%emt 0:00:00]} 3. d4 {[%emt 0:00:00]} cxd4 {[%emt 0:00:04]} 4. Nxd4 {[%emt 0:00:07]} Nf6 {[%emt 0:00:04]} 5. Nc3 {[%emt 0:00:10]} g6 {[%emt 0:00:06]} 6. Be3 {[%emt 0:00:11]} Bg7 {[%emt 0:00:07]} 7. f3 {[%emt 0:00:08]} O-O {[%emt 0:00:03]} 8. Qd2 {[%emt 0:00:12]} Nc6 {[%emt 0:00:06]} 9. O-O-O {[%emt 0:00:10]} Nxd4 {[%emt 0:00:08]} 10. Bxd4 {[%emt 0:00:51]} Be6 {[%emt 0:00:06]} 11. Kb1 {[%emt 0:00:39]} Qc7 {[%emt 0:00:10]} 12. Nd5 {[%emt 0:02:22]} Bxd5 {[%emt 0:01:22]} 13. exd5 {[%emt 0:00:16]} Rfc8 {[%emt 0:01:59]} 14. h4 {[%emt 0:03:41]} Nxd5 {[%emt 0:03:59]} 15. Bxg7 {[%emt 0:02:58]} Kxg7 {[%emt 0:00:13]} 16. Rc1 {[%emt 0:00:51]} Nf6 {[%emt 0:02:21]} 17. g4 {[%emt 0:03:21]} Rh8 {[%emt 0:06:14]} 18. h5 {[%emt 0:10:59]} Qc5 {[%emt 0:03:55]} 19. Be2 {[%emt 0:12:33]} Rac8 {[%emt 0:10:38]} 20. f4 {[%emt 0:06:13]} Ne4 {[%emt 0:03:43]} 21. Qe1 {[%emt 0:02:06]} Qb6 {[%emt 0:09:21]} 22. Ka1 {[%emt 0:03:12]} Nc5 {[%emt 0:03:35]} 23. Qc3+ {[%emt 0:07:34]} f6 {[%emt 0:05:08]} 24. Qe3 {[%emt 0:03:38]} Qc7 {[%emt 0:02:21]} 25. h6+ {[%emt 0:04:58]} Kf8 {[%emt 0:02:11]} 26. b3 {[%emt 0:05:21]} a6 {[%emt 0:14:20]} 27. Bc4 {[%emt 0:03:31]} b5 {[%emt 0:02:09]} 28. Bd5 {[%emt 0:00:15]} Qd7 {[%emt 0:02:54]} 29. b4 {[%emt 0:00:37]} Na4 {[%emt 0:01:20]} 30. Be6 {[%emt 0:00:23]} Rc3 {[%emt 0:03:23]} 31. Qxc3 {[%emt 0:01:17]} Qxe6 {[%emt 0:00:19]} 32. Qf3 {[%emt 0:00:27]} Qc4 {[%emt 0:02:02]} 33. Qa8+ {[%emt 0:01:31]} Kf7 {[%emt 0:00:11]} 34. Qxh8 {[%emt 0:00:12]} Qc3+ {[%emt 0:00:13]} 35. Kb1 {[%emt 0:02:51]} Qb2# {[%emt 0:00:07]} 0-1

[Event "IIFL Wealth  4th Mumbai Junior U-13"]
[Site "Mumbai"]
[Date "2019.01.01"]
[Round "3"]
[White "Sapre Vedang"]
[Black "Shreyas Seshadri Nallore"]
[Result "0-1"]
[ECO "C50"]
[WhiteElo "1049"]
[BlackElo "1343"]
[Annotator "NA RC"]
[PlyCount "72"]
[EventDate "2018.12.30"]
[EventType "swiss"]
[EventCountry "IND"]
[SourceTitle "playchess.com"]
[Source "ChessBase"]
[SourceQuality "1"]
[TimeControl "40/5400+30:1800+30"]

1. e4 {[%emt 0:00:00]} e5 {[%emt 0:00:00]} 2. Nf3 {[%emt 0:00:04]} Nc6 {[%emt 0:00:00]} 3. Bc4 {[%emt 0:00:24]} Bc5 {[%emt 0:00:03]} 4. Nc3 {[%emt 0:00:26]} Nf6 {[%emt 0:01:17]} 5. d3 {[%emt 0:00:40]} d6 {[%emt 0:00:55]} 6. Bg5 {[%emt 0:00:39]} Bg4 {[%emt 0:02:52]} 7. Nd5 {[%emt 0:00:09]} Nd4 {[%emt 0:03:27]} 8. Bxf6 {[%emt 0:00:34]} gxf6 {[%emt 0:00:09]} 9. c3 {[%emt 0:00:05]} Nxf3+ {[%emt 0:01:36]} 10. gxf3 {[%emt 0:00:10]} Be6 {[%emt 0:00:10]} 11. Rg1 {[%emt 0:00:09]} c6 {[%emt 0:10:20]} 12. Ne3 {[%emt 0:00:25]} Bxe3 {[%emt 0:02:13]} 13. fxe3 {[%emt 0:00:06]} Bxc4 {[%emt 0:02:35]} 14. dxc4 {[%emt 0:00:08]} Qd7 {[%emt 0:00:26]} 15. Qd2 {[%emt 0:00:22]} O-O-O {[%emt 0:03:11]} 16. O-O-O {[%emt 0:00:07]} f5 {[%emt 0:10:35]} 17. Qd3 {[%emt 0:01:03]} fxe4 {[%emt 0:05:16]} 18. Qxe4 {[%emt 0:00:35]} f5 {[%emt 0:11:23]} 19. Qh4 {[%emt 0:00:16]} Qf7 {[%emt 0:00:59]} 20. b3 {[%emt 0:03:37]} Rhg8 {[%emt 0:11:06]} 21. Qh3 {[%emt 0:02:22]} Kc7 {[%emt 0:02:23]} 22. Kb2 {[%emt 0:04:56]} Rg6 {[%emt 0:02:58]} 23. Rg3 {[%emt 0:00:34]} Rdg8 {[%emt 0:04:26]} 24. Rdg1 {[%emt 0:00:25]} R8g7 {[%emt 0:01:09]} 25. Kc2 {[%emt 0:02:32]} f4 {[%emt 0:04:10]} 26. exf4 {[%emt 0:01:09]} Qxf4 {[%emt 0:01:55]} 27. Rg4 {[%emt 0:00:59]} Qf5+ {[%emt 0:02:32]} 28. Kb2 {[%emt 0:00:09]} h5 {[%emt 0:01:41]} 29. Rxg6 {[%emt 0:01:03]} Qxh3 {[%emt 0:00:21]} 30. Rxg7+ {[%emt 0:00:06]} Kb6 {[%emt 0:00:04]} 31. Rd1 {[%emt 0:01:43]} Qxh2+ {[%emt 0:01:36]} 32. Ka3 {[%emt 0:00:09]} Qc2 {[%emt 0:06:56]} 33. Rxd6 {[%emt 0:00:16]} Qc1+ {[%emt 0:00:06]} 34. Ka4 {[%emt 0:00:08]} Kc5 {[%emt 0:02:40]} 35. Rdd7 {[%emt 0:01:44]} b5+ {[%emt 0:00:18]} 36. cxb5 {[%emt 0:03:20]} cxb5+ {[%emt 0:00:30] Rg3} 0-1

[Event "IIFL Wealth  4th Mumbai Junior U-13"]
[Site "Mumbai"]
[Date "2019.01.01"]
[Round "3"]
[White "Kapadia Prisha"]
[Black "Mitank Maru"]
[Result "0-1"]
[ECO "A80"]
[WhiteElo "1037"]
[BlackElo "1312"]
[Annotator "NA RC"]
[PlyCount "144"]
[EventDate "2018.12.30"]
[EventType "swiss"]
[EventCountry "IND"]
[SourceTitle "playchess.com"]
[Source "ChessBase"]
[SourceQuality "1"]
[TimeControl "40/5400+30:1800+30"]

1. d4 {[%emt 0:00:00]} f5 {[%emt 0:00:06]} 2. Nf3 {[%emt 0:00:00]} e6 {[%emt 0:01:19]} 3. g3 {[%emt 0:00:02]} Nf6 {[%emt 0:01:25]} 4. Bg2 {[%emt 0:00:17]} Be7 {[%emt 0:00:17]} 5. O-O {[%emt 0:00:19]} O-O {[%emt 0:01:55]} 6. b3 {[%emt 0:00:51]} d5 {[%emt 0:01:37]} 7. Bb2 {[%emt 0:01:50]} c6 {[%emt 0:02:01]} 8. Nbd2 {[%emt 0:00:48]} Qe8 {[%emt 0:02:16]} 9. c4 {[%emt 0:02:20]} Qh5 {[%emt 0:08:30]} 10. e3 {[%emt 0:06:09]} g5 {[%emt 0:24:18]} 11. Ne5 {[%emt 0:11:50]} Qh6 {[%emt 0:08:17]} 12. Qe2 {[%emt 0:04:19]} Nbd7 {[%emt 0:02:14]} 13. Ndf3 {[%emt 0:21:13]} g4 {[%emt 0:07:06]} 14. Nxd7 {[%emt 0:01:45]} Bxd7 {[%emt 0:03:49]} 15. Ne5 {[%emt 0:01:09]} Be8 {[%emt 0:03:17]} 16. Rfd1 {[%emt 0:06:02]} Nd7 {[%emt 0:05:31]} 17. Rac1 {[%emt 0:07:13]} Rf6 {[%emt 0:04:54]} 18. f3 {[%emt 0:09:59]} gxf3 {[%emt 0:03:46]} 19. Bxf3 {[%emt 0:01:11]} Nxe5 {[%emt 0:04:18]} 20. dxe5 {[%emt 0:00:34]} Rg6 {[%emt 0:02:30]} 21. cxd5 {[%emt 0:03:36]} cxd5 {[%emt 0:01:51]} 22. Rc7 {[%emt 0:04:27]} Rg7 {[%emt 0:01:03]} 23. Rdc1 {[%emt 0:02:52]} Bc6 {[%emt 0:01:04]} 24. Bd4 {[%emt 0:03:06]} Kf8 {[%emt 0:01:46]} 25. Rc2 {[%emt 0:02:32]} Ke8 {[%emt 0:01:43]} 26. Bc5 {[%emt 0:02:15]} Bxc5 {[%emt 0:02:09]} 27. Rxg7 {[%emt 0:00:17]} Bxe3+ {[%emt 0:00:39]} 28. Kh1 {[%emt 0:00:35]} Qxg7 {[%emt 0:00:31]} 29. Qxe3 {[%emt 0:00:14]} Kf7 {[%emt 0:01:05]} 30. Bh5+ {[%emt 0:00:59]} Kg8 {[%emt 0:00:18]} 31. Kg1 {[%emt 0:00:55]} Rf8 {[%emt 0:01:00]} 32. Rf2 {[%emt 0:00:17]} Kh8 {[%emt 0:00:45]} 33. Qf4 {[%emt 0:00:35]} Rg8 {[%emt 0:00:41]} 34. Bf3 {[%emt 0:02:13]} Qd7 {[%emt 0:00:36]} 35. Qh6 {[%emt 0:01:49]} Qf7 {[%emt 0:00:53]} 36. Qf4 {[%emt 0:00:36]} Rd8 {[%emt 0:00:25]} 37. Qd4 {[%emt 0:00:32]} Qg7 {[%emt 0:00:36]} 38. Qh4 {[%emt 0:00:17]} Rd7 {[%emt 0:01:09]} 39. Qd4 {[%emt 0:00:20]} Qg5 {[%emt 0:00:45]} 40. Rf1 {[%emt 0:00:00]} Kg8 {[%emt 0:00:00]} 41. Re1 {[%emt 0:02:43]} b6 {[%emt 0:01:08]} 42. Bg2 {[%emt 0:01:07]} Qe7 {[%emt 0:00:36]} 43. Rc1 {[%emt 0:00:34]} Bb7 {[%emt 0:00:38]} 44. Kh1 {[%emt 0:00:57]} Rc7 {[%emt 0:00:42]} 45. Rxc7 {[%emt 0:00:54]} Qxc7 {[%emt 0:00:03]} 46. Qf4 {[%emt 0:00:15]} Qg7 {[%emt 0:02:06]} 47. Qd4 {[%emt 0:00:44]} Qe7 {[%emt 0:00:40]} 48. Qf4 {[%emt 0:00:49]} Kg7 {[%emt 0:00:37]} 49. Qd4 {[%emt 0:02:10]} Qc5 {[%emt 0:01:36]} 50. Qf4 {[%emt 0:01:45]} h6 {[%emt 0:00:13]} 51. g4 {[%emt 0:00:50]} Qc2 {[%emt 0:01:20]} 52. gxf5 {[%emt 0:06:21]} Qb1+ {[%emt 0:00:57]} 53. Bf1 {[%emt 0:01:30]} Qxf5 {[%emt 0:01:08]} 54. Qxf5 {[%emt 0:00:39]} exf5 {[%emt 0:00:22]} 55. Bg2 {[%emt 0:00:15]} Kf7 {[%emt 0:00:11]} 56. Kg1 {[%emt 0:00:15]} Ke6 {[%emt 0:00:07]} 57. Kf2 {[%emt 0:00:13]} Kxe5 {[%emt 0:00:13]} 58. Ke3 {[%emt 0:00:21]} d4+ {[%emt 0:00:06]} 59. Kf2 {[%emt 0:00:22]} Bxg2 {[%emt 0:00:08]} 60. Kxg2 {[%emt 0:00:12]} d3 {[%emt 0:00:23]} 61. Kf2 {[%emt 0:00:32]} Kd4 {[%emt 0:00:19]} 62. h4 {[%emt 0:00:18]} Kc3 {[%emt 0:00:11]} 63. h5 {[%emt 0:00:22]} d2 {[%emt 0:00:10]} 64. Ke2 {[%emt 0:00:12]} Kc2 {[%emt 0:00:08]} 65. Ke3 {[%emt 0:00:07]} d1=Q {[%emt 0:00:11]} 66. Kf4 {[%emt 0:00:12]} Qd3 {[%emt 0:00:22]} 67. b4 {[%emt 0:00:12]} Qe4+ {[%emt 0:00:11]} 68. Kg3 {[%emt 0:00:11]} f4+ {[%emt 0:00:07]} 69. Kf2 {[%emt 0:00:12]} Qe3+ {[%emt 0:00:08]} 70. Kg2 {[%emt 0:00:16]} f3+ {[%emt 0:00:18]} 71. Kf1 {[%emt 0:00:11]} Qe2+ {[%emt 0:00:54]} 72. Kg1 {[%emt 0:00:10]} Qg2# {[%emt 0:00:07]} 0-1

[Event "IIFL Wealth  4th Mumbai Junior U-13"]
[Site "Mumbai"]
[Date "2019.01.01"]
[Round "3"]
[White "Vihaan Dumir"]
[Black "Wahba, David George"]
[Result "0-1"]
[ECO "A37"]
[WhiteElo "1013"]
[BlackElo "1295"]
[Annotator "NA RC"]
[PlyCount "96"]
[EventDate "2018.12.30"]
[EventType "swiss"]
[EventCountry "IND"]
[SourceTitle "playchess.com"]
[Source "ChessBase"]
[SourceQuality "1"]
[TimeControl "40/5400+30:1800+30"]

1. c4 {[%emt 0:00:00]} c5 {[%emt 0:00:00]} 2. Nc3 {[%emt 0:00:15]} Nc6 3. g3 g6 {[%emt 0:01:26]} 4. Bg2 {[%emt 0:00:38]} Bg7 {[%emt 0:00:19]} 5. Nf3 {[%emt 0:00:16]} e6 {[%emt 0:01:15]} 6. d3 {[%emt 0:00:03]} d6 {[%emt 0:00:24]} 7. O-O {[%emt 0:00:16]} Nge7 {[%emt 0:00:08]} 8. Bf4 {[%emt 0:00:33]} O-O {[%emt 0:01:28]} 9. Qc1 {[%emt 0:00:10]} Re8 10. Ne4 Nf5 {[%emt 0:09:28]} 11. g4 {[%emt 0:01:10]} Nfd4 {[%emt 0:00:27]} 12. Bh6 {[%emt 0:01:10]} Nxe2+ {[%emt 0:00:11]} 13. Kh1 {[%emt 0:00:41]} Nxc1 {[%emt 0:00:09]} 14. Bxc1 {[%emt 0:00:14]} Nd4 15. Ne1 {[%emt 0:02:00]} e5 {[%emt 0:02:02]} 16. g5 {[%emt 0:00:27]} Bf5 {[%emt 0:00:35]} 17. Nc3 {[%emt 0:01:16]} Rb8 {[%emt 0:01:04]} 18. Be3 {[%emt 0:00:28]} Qd7 {[%emt 0:02:02]} 19. Rg1 {[%emt 0:00:53]} Bh3 {[%emt 0:00:50]} 20. Be4 {[%emt 0:00:53]} Nf5 21. Bd2 {[%emt 0:02:53]} a6 {[%emt 0:01:54]} 22. a4 {[%emt 0:00:28]} Nd4 {[%emt 0:00:41]} 23. Be3 {[%emt 0:01:28]} b5 {[%emt 0:01:12]} 24. axb5 {[%emt 0:00:36]} axb5 {[%emt 0:00:20]} 25. Bxd4 {[%emt 0:00:41]} b4 {[%emt 0:00:51]} 26. Nb5 {[%emt 0:01:13]} exd4 {[%emt 0:00:59]} 27. Ra7 {[%emt 0:00:32]} Qd8 {[%emt 0:03:04]} 28. Bc6 {[%emt 0:01:53]} Re7 {[%emt 0:00:58]} 29. Ra6 {[%emt 0:01:27]} Bd7 {[%emt 0:04:45]} 30. Bd5 {[%emt 0:01:38]} Bxb5 {[%emt 0:00:37]} 31. cxb5 {[%emt 0:00:17]} Rxb5 {[%emt 0:00:41]} 32. Ra8 {[%emt 0:00:18]} Rb8 {[%emt 0:00:13]} 33. Ra6 {[%emt 0:00:27]} Re5 {[%emt 0:02:08]} 34. Be4 {[%emt 0:00:45]} Rxg5 {[%emt 0:00:42]} 35. Ng2 {[%emt 0:01:40]} d5 {[%emt 0:01:01]} 36. Bf3 {[%emt 0:01:45]} Rb6 37. Ra7 {[%emt 0:00:47]} Qf6 {[%emt 0:01:07]} 38. Ne1 {[%emt 0:02:11]} Rxg1+ {[%emt 0:00:23]} 39. Kxg1 {[%emt 0:00:15]} Qg5+ {[%emt 0:00:31]} 40. Kf1 {[%emt 0:00:49]} Rf6 {[%emt 0:01:09]} 41. Ra1 {[%emt 0:30:57]} Qh4 {[%emt 0:30:51]} 42. Kg1 {[%emt 0:00:00]} Bf8 {[%emt 0:00:00]} 43. Kg2 {[%emt 0:00:00]} Bd6 {[%emt 0:00:00]} 44. h3 {[%emt 0:00:00]} Rf5 {[%emt 0:00:00]} 45. Kf1 {[%emt 0:00:00]} Qxh3+ {[%emt 0:00:00]} 46. Ke2 {[%emt 0:00:00]} Re5+ {[%emt 0:00:00]} 47. Kd1 {[%emt 0:00:00]} Rxe1+ {[%emt 0:00:00]} 48. Kxe1 {[%emt 0:00:00]} Qxf3 {[%emt 0:00:00]} 0-1

[Event "IIFL Wealth  4th Mumbai Junior U-13"]
[Site "Mumbai"]
[Date "2019.01.01"]
[Round "3"]
[White "Vittanala Shanmuk Saish"]
[Black "Srivatsan Karthikeyan"]
[Result "0-1"]
[ECO "C77"]
[WhiteElo "1005"]
[BlackElo "1288"]
[Annotator "NA RC"]
[PlyCount "90"]
[EventDate "2018.12.30"]
[EventType "swiss"]
[EventCountry "IND"]
[SourceTitle "playchess.com"]
[Source "ChessBase"]
[SourceQuality "1"]
[TimeControl "40/5400+30:1800+30"]

1. e4 {[%emt 0:00:00]} e5 {[%emt 0:00:12]} 2. Nf3 {[%emt 0:00:00]} Nc6 {[%emt 0:00:06]} 3. Bb5 {[%emt 0:00:35]} a6 {[%emt 0:00:31]} 4. Ba4 {[%emt 0:00:37]} Nf6 {[%emt 0:02:04]} 5. Bxc6 {[%emt 0:01:12]} dxc6 {[%emt 0:00:15]} 6. d3 {[%emt 0:00:45]} Bd6 {[%emt 0:01:25]} 7. Nbd2 {[%emt 0:01:29]} Bg4 {[%emt 0:00:40]} 8. Nf1 {[%emt 0:01:25]} h6 {[%emt 0:08:54]} 9. Ng3 {[%emt 0:01:36]} Qe7 {[%emt 0:10:01]} 10. h3 {[%emt 0:04:40]} Bd7 {[%emt 0:00:42]} 11. O-O {[%emt 0:03:43]} O-O-O {[%emt 0:04:23]} 12. Be3 {[%emt 0:02:05]} g5 {[%emt 0:01:40]} 13. Nh2 {[%emt 0:05:55]} Rdg8 {[%emt 0:09:15]} 14. d4 {[%emt 0:12:28]} h5 {[%emt 0:05:07]} 15. Nf5 {[%emt 0:05:06]} Bxf5 {[%emt 0:03:17]} 16. exf5 {[%emt 0:01:31]} e4 {[%emt 0:00:36]} 17. c4 {[%emt 0:04:20]} Qd7 {[%emt 0:03:05]} 18. c5 Bxh2+ {[%emt 0:00:48]} 19. Kxh2 {[%emt 0:03:36]} Qxf5 {[%emt 0:00:18]} 20. b4 {[%emt 0:01:29]} g4 {[%emt 0:01:20]} 21. h4 {[%emt 0:00:25]} Qd5 {[%emt 0:01:28]} 22. Qd2 {[%emt 0:04:50]} Qf5 {[%emt 0:01:22]} 23. Bf4 {[%emt 0:04:17]} Nd5 {[%emt 0:01:09]} 24. Bg3 {[%emt 0:00:34]} Re8 {[%emt 0:01:09]} 25. a4 {[%emt 0:05:13]} Qe6 {[%emt 0:02:17]} 26. b5 {[%emt 0:02:39]} axb5 {[%emt 0:02:03]} 27. axb5 {[%emt 0:00:16]} f5 {[%emt 0:00:38]} 28. bxc6 {[%emt 0:01:40]} bxc6 {[%emt 0:00:07]} 29. Ra8+ {[%emt 0:00:41]} Kd7 {[%emt 0:00:08]} 30. Rxe8 {[%emt 0:00:25]} Rxe8 {[%emt 0:00:29]} 31. Be5 {[%emt 0:00:22]} Qf7 {[%emt 0:00:42]} 32. f3 {[%emt 0:01:47]} e3 {[%emt 0:01:13]} 33. Qe2 {[%emt 0:01:15]} Qg6 {[%emt 0:06:07]} 34. f4 {[%emt 0:01:44]} Rb8 {[%emt 0:01:34]} 35. g3 {[%emt 0:03:42]} Qe6 {[%emt 0:00:22]} 36. Kg1 {[%emt 0:01:14]} Rb3 {[%emt 0:00:50]} 37. Ra1 {[%emt 0:01:16]} Nc3 {[%emt 0:03:01]} 38. Qxe3 {[%emt 0:02:11]} Ne4 {[%emt 0:00:11]} 39. Qe1 {[%emt 0:01:17]} Rxg3+ {[%emt 0:00:14]} 40. Kh1 {[%emt 0:00:00]} Qd5 {[%emt 0:00:00]} 41. Kh2 {[%emt 0:01:45]} Rh3+ {[%emt 0:00:33]} 42. Kg1 {[%emt 0:00:19]} Ng3 {[%emt 0:00:36]} 43. Qd1 Qh1+ 44. Kf2 Rh2+ 45. Ke3 Qe4# 0-1